bitfinex/quotes_ETHUSD_20250801
["timestamp","ask_amount","ask_price","bid_price","bid_amount"]
[1754040850509,0.1376,3633.3,3632.6,0.1376]
[1754040850710,0.1376,3633.3,3633.1,2.75242113]
[1754040851319,2.354,3633.2,3632.9,2.75257579]
[1754040851518,6.59,3633.1,3632.9,2.75257579]
[1754040851917,4.7043,3633.1,3632.8,2.75269315]
[1754040852217,2.0233,3633.0,3632.4,0.1376]
[1754040852414,2.0233,3633.0,3631.2,2.75390386]
[1754040852415,0.1376,3632.8,3632.7,2.75276452]
[1754040852633,6.2593,3632.8,3632.7,2.75276452]
[1754040852920,4.3736,3632.8,3632.7,2.75276452]
[1754040854955,4.3736,3632.8,3632.6,2.75283264]
[1754040855154,4.8419,3632.8,3632.5,2.75289902]
[1754040855355,2.354,3632.7,3632.2,0.1376]
[1754040855539,0.1376,3632.5,3632.0,0.1376]
[1754040855748,4.236,3632.4,3632.3,2.75307656]
[1754040856258,4.236,3632.4,3632.3,5.21517656]
[1754040856415,4.236,3632.4,3632.3,2.89067656]
[1754040857723,4.236,3632.4,3632.3,2.75307656]
[1754040858025,6.1469,3632.4,3632.3,2.75307656]
[1754040858445,6.5833,3632.4,3632.3,2.75307656]
[1754040859285,6.5833,3632.4,3632.2,2.75313139]
[1754040859488,4.6724,3632.4,3632.3,2.75307656]
[1754040859772,4.6724,3632.4,3631.8,0.1376]
[1754040859960,0.1376,3632.1,3632.0,2.75330396]
[1754040860164,6.7209,3632.1,3632.0,2.75330396]
[1754040860561,6.2845,3632.1,3631.6,0.1376]
[1754040860781,0.1376,3631.9,3631.4,0.1376]
[1754040861091,6.1469,3631.8,3631.2,0.1376]
[1754040861258,4.236,3631.7,3631.6,2.75360722]
[1754040861665,6.2845,3631.7,3631.6,2.75360722]
[1754040861866,2.4849,3631.7,3631.6,2.75360722]
[1754040862075,1.9109,3632.3,3632.0,2.75323159]
[1754040862279,0.1376,3632.1,3632.0,2.75323159]
[1754040862593,4.3736,3632.1,3632.0,2.75323159]
[1754040862886,0.1376,3632.1,3632.0,2.75323159]
[1754040863060,1.9109,3633.6,3632.0,2.34013303]
[1754040863407,0.1376,3632.8,3632.7,2.75277341]
[1754040863555,6.7219,3632.8,3632.6,2.75283809]
[1754040863762,1.9109,3632.7,3632.6,2.75283809]
[1754040864083,2.4849,3632.7,3632.4,2.7529313]
[1754040864289,0.1376,3632.5,3631.9,5.89093787]
[1754040864589,4.237,3632.4,3632.3,2.75307656]
[1754040865095,6.1479,3632.4,3632.3,2.75307656]
[1754040865250,4.237,3632.4,3632.3,2.75307656]
[1754040865902,4.236,3632.4,3632.3,5.06567656]
[1754040866069,3.42437462,3634.4,3632.6,3.0]
[1754040866386,1.9109,3634.1,3632.8,2.75269764]
[1754040866591,0.1376,3633.7,3633.6,2.75207747]
[1754040866752,4.3736,3633.7,3633.6,2.75207747]
[1754040867152,4.3736,3633.7,3633.1,2.0124]
[1754040867354,6.2845,3633.7,3633.6,2.75209158]
[1754040868000,4.3736,3633.7,3633.6,2.75209158]
[1754040868567,6.2845,3633.7,3633.6,2.75209158]
[1754040869493,6.2845,3633.7,3633.5,2.75210198]
[1754040869695,1.9109,3633.6,3633.5,2.75210198]
[1754040869897,2.0485,3633.6,3633.5,2.75210198]
[1754040870102,2.0485,3633.6,3633.4,2.75224243]
[1754040870401,1.9109,3633.5,3633.4,2.75224243]
[1754040871295,3.01939,3633.5,3633.2,2.7523899]
[1754040871494,3.01939,3633.5,3633.3,2.75231882]
[1754040871495,4.6724,3633.4,3633.3,2.75231882]
[1754040871695,4.81,3633.4,3633.1,2.75241934]
[1754040871864,2.3473,3633.3,3633.1,2.75241934]
[1754040872061,0.1376,3633.2,3633.1,2.75241934]
[1754040872394,2.4849,3633.2,3633.1,2.75247034]
[1754040873079,2.4849,3633.2,3633.0,2.75252399]
[1754040873262,6.1469,3633.1,3632.9,2.75259369]
[1754040873459,2.0485,3633.0,3632.5,0.1376]
[1754040873677,1.9109,3633.0,3632.8,2.75264702]
[1754040873873,1.9109,3632.9,3632.8,2.75264702]
[1754040874166,1.9109,3632.9,3632.6,2.75282002]
[1754040874167,6.2845,3632.9,3632.6,2.75278181]
[1754040874367,2.3473,3632.8,3632.6,2.75278181]
[1754040874574,0.1376,3632.7,3632.6,2.75278181]
[1754040874902,0.1376,3632.7,3632.1,0.5754]
[1754040875084,0.1376,3632.7,3632.6,2.75284919]
[1754040875276,4.3726,3632.7,3632.6,2.75284919]
[1754040875682,6.2835,3632.7,3632.6,2.75284919]
[1754040876179,6.2835,3632.7,3632.3,2.75306437]
[1754040876494,0.1376,3632.5,3632.4,2.75300077]
[1754040876913,0.1376,3632.5,3632.0,0.1376]
[1754040876914,2.0485,3632.5,3632.3,2.75302722]
[1754040877082,6.1459,3632.4,3632.2,2.75312152]
[1754040877281,4.235,3632.4,3632.2,2.75312852]
[1754040877499,1.9109,3632.3,3632.2,2.75312852]
[1754040877712,2.0485,3632.3,3632.2,2.75312852]
[1754040877879,0.1376,3632.3,3632.2,2.75312852]
[1754040878088,2.4609,3633.2,3632.8,2.75268465]
[1754040878318,6.1459,3633.1,3632.8,2.75268465]
[1754040878618,1.9109,3633.1,3632.9,2.75260794]
[1754040878917,4.3726,3633.0,3632.9,2.75260794]
[1754040879122,4.3726,3633.0,3632.5,2.75286681]
[1754040879297,4.235,3633.0,3632.8,2.75267613]
[1754040879490,4.235,3632.9,3632.5,2.4502]
[1754040879690,4.235,3632.9,3632.8,2.75269764]
[1754040880324,0.1376,3633.0,3632.9,2.75262187]
[1754040880622,4.3726,3633.0,3632.9,2.75262187]
[1754040881434,6.2835,3633.0,3632.8,2.752654]
[1754040881631,1.9109,3632.9,3632.3,3.0]
[1754040881922,2.3473,3632.9,3632.5,2.75286366]
[1754040882133,2.3473,3632.8,3632.5,2.75286366]
[1754040882285,0.1376,3632.6,3632.5,2.75286366]
[1754040882617,2.0485,3632.6,3632.5,2.75286366]
[1754040882815,2.4849,3632.6,3632.3,2.75302948]
[1754040883020,0.67199,3632.6,3632.1,2.75319863]
[1754040883222,2.3473,3632.5,3632.2,2.75314415]
[1754040883431,4.235,3632.4,3632.1,2.75319674]
[1754040883727,1.9109,3632.3,3632.2,2.75309837]
[1754040883898,4.3726,3632.4,3631.5,1.8748]
[1754040884126,0.1376,3632.2,3632.1,2.75316782]
[1754040884430,0.1376,3632.2,3632.1,2.75322816]
[1754040884837,2.0485,3632.2,3632.1,2.75322816]
[1754040885147,2.0485,3632.2,3632.0,2.75327323]
[1754040885443,6.1459,3632.1,3632.0,2.75327323]
[1754040885624,4.235,3632.1,3632.0,2.75327323]
[1754040885823,0.55,3633.4,3632.0,3.36987036]
[1754040886024,1.9109,3633.3,3632.4,2.75300077]
[1754040886337,0.1376,3632.9,3632.8,2.75269764]
[1754040886646,6.1982,3632.9,3632.6,2.75283643]
[1754040886951,4.3726,3632.9,3632.8,2.75269764]
[1754040887426,4.3726,3632.9,3632.7,2.75274847]
[1754040888167,1.9632,3632.8,3632.3,2.3164]
[1754040888339,1.9632,3632.8,3632.1,3.0]
[1754040888340,1.9632,3632.8,3632.4,2.75292887]
[1754040888544,0.1376,3632.6,3632.5,2.75287564]
[1754040888869,4.3726,3632.6,3632.5,2.75287564]
[1754040889566,0.1376,3632.6,3632.5,5.85150424]
[1754040889740,3.0,3633.7,3632.6,2.75284919]
[1754040889741,4.235,3632.7,3632.6,2.75284919]
[1754040889935,4.235,3632.7,3632.6,5.06924919]
[1754040890141,0.1376,3633.0,3632.9,2.75262187]
[1754040890338,4.235,3633.0,3632.8,2.75269764]
[1754040890536,4.235,3633.0,3632.9,3.69713163]
[1754040891129,4.235,3633.0,3632.9,5.56203163]
[1754040891485,4.235,3633.0,3632.9,6.01353163]
[1754040892163,4.235,3633.0,3632.9,3.69713163]
[1754040892524,4.235,3633.0,3632.9,6.01353163]
[1754040892724,0.1376,3633.5,3633.4,2.75224307]
[1754040892925,0.4525,3634.5,3633.4,2.7797655]
[1754040893264,0.1376,3634.0,3633.9,2.75186438]
[1754040893785,4.235,3634.0,3633.9,5.06826438]
[1754040894063,4.235,3634.5,3633.9,5.20583507]
[1754040894262,4.3726,3634.5,3634.4,2.75143956]
[1754040896162,0.1376,3634.5,3634.4,2.75143956]
[1754040896364,4.234,3634.6,3634.5,2.75141009]
[1754040896657,6.613,3635.1,3634.2,0.1376]
[1754040896870,4.234,3635.6,3634.7,2.7512587]
[1754040897044,4.234,3635.6,3634.3,3.02751561]
[1754040897045,0.1376,3635.5,3634.8,2.3164]
[1754040897245,0.1376,3635.3,3635.2,2.75082539]
[1754040897572,0.1376,3635.3,3634.1,2.75164625]
[1754040897573,0.1376,3635.0,3634.1,3.0]
[1754040897787,0.1376,3634.8,3634.7,2.75119613]
[1754040898076,2.5533,3634.8,3634.5,2.75138738]
[1754040898390,2.4157,3634.7,3634.5,2.75138738]
[1754040898565,1.9632,3634.7,3634.5,2.75138738]
[1754040898770,1.9632,3634.6,3634.5,2.75138738]
[1754040899842,0.1376,3634.8,3634.7,2.7512587]
[1754040900076,2.1008,3634.8,3634.7,2.7512587]
[1754040900274,2.5533,3634.8,3634.3,2.88910894]
[1754040900453,1.9632,3634.7,3634.5,2.75134913]
[1754040900768,0.1376,3634.8,3634.3,0.1376]
[1754040900972,1.9632,3634.7,3634.4,2.75142049]
[1754040901286,1.9632,3634.6,3634.5,2.75141009]
[1754040901633,1.9632,3634.6,3634.3,2.88910407]
[1754040901838,1.9632,3634.5,3634.2,2.75160036]
[1754040902075,2.1008,3634.5,3634.4,2.751436]
[1754040903092,9.0232,3635.3,3634.4,2.7514858]
[1754040903381,0.1376,3635.2,3635.1,2.75089981]
[1754040903785,4.233,3635.4,3635.0,2.75096052]
[1754040903786,0.4525,3635.4,3635.0,2.75096052]
[1754040904005,1.9632,3635.2,3634.8,0.1376]
[1754040904291,0.1376,3635.3,3634.8,0.57466]
[1754040904476,0.1376,3635.3,3634.9,2.75106219]
[1754040904477,1.9632,3635.2,3634.9,2.75106219]
[1754040904662,0.1376,3635.3,3634.9,2.75110732]
[1754040904861,2.1008,3635.3,3635.0,2.75098743]
[1754040905393,2.1008,3635.3,3635.1,2.7509544]
[1754040905549,0.1376,3635.3,3635.1,2.7509544]
[1754040905952,0.1376,3635.3,3635.1,2.75092807]
[1754040906381,0.1376,3635.3,3634.7,6.98425634]
[1754040906583,0.1376,3635.0,3634.8,2.75113044]
[1754040906786,2.1008,3635.0,3634.7,6.98425627]
[1754040907083,0.1376,3634.8,3634.7,4.233]
[1754040907287,2.5533,3634.8,3634.7,4.233]
[1754040907487,2.5533,3634.8,3634.4,6.98341309]
[1754040907683,0.1376,3634.8,3634.4,4.232]
[1754040907878,1.9632,3634.7,3634.4,4.232]
[1754040908075,1.9632,3634.7,3634.5,2.75136036]
[1754040908290,1.9632,3634.6,3634.4,4.232]
[1754040908460,2.1008,3634.5,3634.4,4.232]
[1754040908659,2.5533,3634.5,3634.3,4.232]
[1754040908855,2.4157,3634.4,3634.3,4.232]
[1754040909458,0.1376,3634.5,3634.3,6.98356151]
[1754040909764,0.1376,3634.5,3634.3,4.232]
[1754040909966,0.1376,3634.5,3634.4,2.7514858]
[1754040910167,0.1376,3634.8,3634.6,2.75133439]
[1754040910368,0.1376,3635.4,3635.3,2.75080038]
[1754040911959,2.5533,3635.4,3635.0,4.232]
[1754040912164,0.1376,3635.2,3635.0,4.232]
[1754040912393,0.1376,3635.2,3635.1,2.75095595]
[1754040912560,2.4157,3635.1,3635.0,6.98302013]
[1754040912756,1.9632,3635.1,3635.0,6.98302013]
[1754040913492,2.4157,3635.1,3635.0,4.232]
[1754040913691,2.4157,3635.1,3634.7,2.75123493]
[1754040913897,2.4157,3635.1,3634.8,6.98315698]
[1754040914069,0.4525,3635.1,3634.8,4.232]
[1754040914395,0.1376,3634.9,3634.8,4.232]
[1754040914592,2.1008,3634.9,3634.8,4.232]
[1754040915456,2.1008,3634.9,3634.8,6.983183]
[1754040915659,0.1376,3634.9,3634.8,6.983183]
[1754040916592,1.9915,3634.9,3634.8,4.232]
[1754040916804,1.9915,3634.9,3634.8,6.983183]
[1754040916960,0.1376,3634.9,3634.8,6.983183]
[1754040917382,2.4556,3634.9,3634.8,4.232]
[1754040918069,1.9915,3634.9,3634.8,4.232]
[1754040918668,0.1376,3634.9,3634.8,6.983183]
[1754040918866,1.8539,3635.6,3634.8,9.9869013]
[1754040919176,0.1376,3635.4,3635.3,2.75080461]
[1754040919377,3.75489961,3636.2,3635.6,2.75051218]
[1754040919583,2.4039,3636.1,3635.6,2.75051218]
[1754040919778,4.57873276,3636.1,3635.5,4.231]
[1754040919974,4.57873276,3636.1,3635.6,2.75054783]
[1754040920174,7.79308631,3636.1,3635.5,6.98158783]
[1754040920404,0.1376,3635.7,3635.6,2.75057762]
[1754040923717,0.1376,3635.7,3635.5,4.231]
[1754040923919,0.1376,3635.7,3635.6,2.75057762]
[1754040924136,0.1376,3635.7,3635.5,4.231]
[1754040924328,0.1376,3635.7,3635.6,2.75057762]
[1754040924482,0.1376,3635.7,3635.5,6.98165172]
[1754040924822,0.1376,3635.7,3635.5,6.98162313]
[1754040924975,0.1376,3635.7,3635.5,4.231]
[1754040925176,0.1376,3635.7,3635.6,2.75057762]
[1754040925370,0.1376,3635.7,3635.5,4.231]
[1754040925608,1.9915,3635.7,3635.5,4.231]
[1754040926325,2.318,3635.6,3634.8,2.75116481]
[1754040926614,2.318,3635.6,3634.3,2.75152561]
[1754040926615,0.1376,3634.9,3634.0,5.75174051]
[1754040926823,0.1376,3634.5,3634.0,0.1376]
[1754040926970,1.8539,3634.4,3633.6,2.3054]
[1754040927173,0.1376,3634.2,3634.1,2.75166297]
[1754040927491,0.1376,3634.2,3634.0,4.231]
[1754040927698,1.8539,3634.1,3634.0,6.98278451]
[1754040928603,1.8539,3634.1,3634.0,4.231]
[1754040928803,1.8539,3634.1,3634.0,6.98278866]
[1754040929041,0.1376,3634.2,3634.1,2.75171294]
[1754040930168,0.1376,3634.2,3634.0,4.231]
[1754040930509,1.9915,3634.2,3634.0,6.98272994]
[1754040930684,0.1376,3634.2,3634.0,4.231]
[1754040930887,1.8539,3634.1,3633.6,2.75203352]
[1754040931098,0.6017,3634.0,3633.6,4.231]
[1754040931411,0.1376,3633.7,3633.6,4.231]
[1754040931586,0.1376,3633.7,3633.6,2.75209158]
[1754040931905,0.1376,3633.7,3633.4,2.75222308]
[1754040932104,1.9915,3633.7,3633.4,2.75222308]
[1754040932408,1.9915,3633.7,3633.4,2.75221905]
[1754040932585,1.9915,3633.7,3633.3,4.231]
[1754040932786,1.9915,3633.7,3633.4,2.75224064]
[1754040932993,1.9915,3633.7,3633.5,2.75216487]
[1754040933317,1.8539,3633.6,3633.3,4.231]
[1754040933515,0.1376,3633.5,3633.4,2.75224307]
[1754040933682,4.231,3634.0,3633.9,2.75186438]
[1754040933882,4.231,3634.2,3633.8,2.75190396]
[1754040934188,4.231,3634.2,3633.5,0.1376]
[1754040934189,0.1376,3634.0,3633.9,2.75186438]
[1754040934512,0.1376,3633.8,3633.7,2.75201585]
[1754040935591,0.1376,3633.8,3633.7,5.05741585]
[1754040935905,0.1376,3633.8,3633.7,4.041114]
[1754040936082,0.1376,3633.8,3633.7,6.346514]
[1754040936487,0.1376,3633.8,3633.7,5.05741585]
[1754040936904,0.1376,3633.8,3633.7,2.75201585]
[1754040938122,0.1376,3633.8,3633.6,6.98306081]
[1754040938304,0.1376,3633.8,3633.6,4.231]
[1754040938516,1.9915,3633.8,3633.5,2.75214459]
[1754040938693,0.1376,3633.8,3633.6,2.75209067]
[1754040938889,1.9915,3633.8,3633.4,4.231]
[1754040939089,0.1376,3633.6,3633.4,4.231]
[1754040939392,0.1376,3633.6,3633.4,2.75222993]
[1754040939611,2.318,3633.5,3633.4,2.75222993]
[1754040940014,0.1376,3633.6,3633.5,2.75216733]
[1754040940747,0.1376,3633.8,3633.7,2.75201585]
[1754040943152,0.1376,3633.8,3633.6,2.75207059]
[1754040943320,0.1376,3633.8,3633.4,4.231]
[1754040943521,1.8539,3633.7,3633.6,2.75209158]
[1754040944065,2.318,3633.7,3633.2,6.98339016]
[1754040944350,2.318,3633.6,3633.4,2.75223608]
[1754040944520,0.4641,3633.6,3633.4,2.75223608]
[1754040944706,1.8539,3633.5,3633.4,2.75223608]
[1754040945051,1.9915,3633.7,3633.6,2.75209158]
[1754040945237,1.8539,3633.6,3633.4,2.75222506]
[1754040945441,1.8539,3633.6,3633.5,2.75216733]
[1754040945950,1.8539,3633.6,3633.2,4.231]
[1754040946159,0.1376,3633.7,3633.4,2.7522324]
[1754040946339,2.318,3633.5,3633.1,0.1376]
[1754040946558,0.6017,3633.5,3633.2,2.75233925]
[1754040946714,1.8397,3633.4,3632.9,4.231]
[1754040946919,2.4283,3633.3,3633.0,2.7525461]
[1754040947149,2.4283,3633.3,3632.9,4.231]
[1754040947150,1.8397,3633.2,3632.9,6.98362056]
[1754040947463,0.1376,3633.1,3632.9,2.75259455]
[1754040947614,0.1376,3633.1,3633.0,2.7525461]
[1754040949082,0.1376,3633.1,3633.0,5.0547461]
[1754040949368,0.1376,3633.1,3633.0,2.7525461]
[1754040951349,1.9773,3633.1,3633.0,2.7525461]
[1754040951738,0.1376,3633.1,3633.0,2.7525461]
[1754040953973,0.1376,3633.1,3633.0,3.1842461]
[1754040954181,4.231,3634.1,3633.3,2.75227304]
[1754040954326,0.451,3634.7,3633.5,3.0]
[1754040954526,0.451,3634.7,3633.2,2.75234254]
[1754040954527,1.8397,3635.0,3634.1,2.75171294]
[1754040954731,7.06,3635.4,3634.7,2.7512587]
[1754040954732,0.1376,3634.8,3634.7,2.7512587]
[1754040955264,4.231,3635.2,3635.0,2.75102734]
[1754040955636,0.1376,3635.1,3635.0,2.75102734]
[1754040956152,4.231,3635.2,3634.5,2.3022]
[1754040956357,4.231,3635.2,3634.9,2.75104817]
[1754040956532,4.231,3635.2,3635.0,2.7510105]
[1754040956732,1.8397,3635.1,3634.5,2.3022]
[1754040956933,0.1376,3635.0,3634.8,2.75111147]
[1754040957146,1.9773,3635.0,3634.6,2.75133439]
[1754040957381,1.9773,3635.0,3634.8,2.75116827]
[1754040958032,0.1376,3635.0,3634.3,6.1015]
[1754040958252,0.1376,3634.8,3634.3,5.29709562]
[1754040958485,0.1376,3634.8,3634.6,2.75132183]
[1754040958672,1.8397,3634.7,3634.2,0.1376]
[1754040958963,1.8397,3634.6,3634.5,2.75140859]
[1754040959194,1.9773,3634.6,3634.4,2.75146246]
[1754040959399,0.1376,3634.6,3634.0,7.11931448]
[1754040959578,1.8397,3634.5,3634.1,3.0]
[1754040959762,0.1376,3634.6,3634.4,2.7514858]
[1754040959966,0.1376,3634.6,3634.5,2.75141009]
[1754040961265,4.23,3635.0,3634.5,0.1376]
[1754040961597,0.1376,3634.7,3634.4,6.98146719]
[1754040961903,0.1376,3634.7,3634.6,2.75133439]
[1754040962072,4.3676,3635.0,3634.9,2.75110732]
[1754040962279,4.3676,3635.0,3634.8,2.75117858]
[1754040962601,6.2073,3635.0,3634.8,2.75117007]
[1754040962822,2.2907,3634.9,3634.5,0.1376]
[1754040963033,0.1376,3634.7,3634.6,2.75128616]
[1754040963593,0.1376,3634.7,3634.3,4.23]
[1754040963594,1.9773,3634.7,3634.3,4.23]
[1754040963789,1.8397,3634.6,3634.4,2.75146966]
[1754040963985,0.5886,3634.7,3634.4,2.75146966]
[1754040964206,1.8397,3634.5,3634.4,2.75146966]
[1754040964694,0.5886,3634.7,3634.4,2.75146966]
[1754040964926,1.8397,3634.6,3634.5,2.75141009]
[1754040966033,1.8397,3634.6,3634.3,2.75150071]
[1754040966249,0.1376,3634.5,3634.4,2.75145844]
[1754040966410,1.9773,3634.5,3634.4,2.75145844]
[1754040967526,1.9773,3634.5,3634.2,2.75158892]
[1754040967726,1.9773,3634.5,3634.4,2.7514858]
[1754040967930,1.9773,3634.5,3634.0,0.94215145]
[1754040968097,1.9773,3634.5,3634.4,2.7514858]
[1754040968515,0.1376,3634.5,3634.4,2.7514858]
[1754040971227,7.06,3635.3,3634.4,5.82537665]
[1754040971406,7.06,3635.3,3635.0,2.75098115]
[1754040971407,11.289,3635.3,3635.0,2.75098115]
[1754040971703,11.289,3635.3,3634.7,2.3022]
[1754040971903,0.1376,3635.0,3634.9,2.75106123]
[1754040972445,3.30037087,3635.9,3634.9,2.75106123]
[1754040972446,4.229,3635.5,3635.2,2.75088028]
[1754040972743,0.1376,3635.4,3635.2,2.75088028]
[1754040972933,0.1376,3635.4,3635.3,2.75080461]
[1754040975307,0.1376,3635.4,3635.3,4.62130461]
[1754040975510,0.1376,3635.4,3635.3,2.75080461]
[1754040975842,0.1376,3635.4,3635.3,5.05300461]
[1754040976951,4.228,3635.8,3635.5,2.75058817]
[1754040977161,1.9468,3635.7,3635.5,2.75058817]
[1754040977314,0.1376,3635.6,3635.5,2.75058817]
[1754040979824,2.0844,3635.6,3635.5,2.75058817]
[1754040980621,2.5565,3635.6,3635.3,2.75078794]
[1754040980827,2.4189,3635.5,3635.3,2.75078794]
[1754040981028,0.4721,3635.5,3635.3,2.75078794]
[1754040981227,1.9468,3635.4,3634.9,0.1376]
[1754040981517,2.0844,3635.3,3634.7,4.228]
[1754040981728,0.1376,3634.8,3634.2,0.34031051]
[1754040981926,0.1376,3634.5,3634.4,2.7514858]
[1754040982239,4.7001,3634.9,3634.4,6.6635]
[1754040982240,0.1376,3634.9,3634.4,6.6635]
[1754040982442,0.1376,3634.9,3634.8,2.75112149]
[1754040983372,2.0844,3634.9,3634.8,2.75112149]
[1754040984352,2.5565,3634.9,3634.4,2.75143822]
[1754040984558,1.9468,3634.9,3634.5,2.75140934]
[1754040984757,0.4721,3634.8,3634.5,2.75140934]
[1754040984957,0.1376,3634.6,3633.1,2.4355]
[1754040985137,0.1376,3634.1,3634.0,2.7517837]
[1754040986161,6.1738,3634.5,3634.4,2.7514858]
[1754040986360,4.227,3634.5,3634.4,2.7514858]
[1754040986547,0.1376,3634.5,3634.4,2.7514858]
[1754040986753,4.3646,3634.5,3634.4,2.7514858]
[1754040987352,6.3114,3634.5,3634.2,2.75156644]
[1754040987524,0.1376,3634.3,3634.2,2.75163722]
[1754040989301,2.4189,3634.8,3634.5,2.75136883]
[1754040989302,1.9468,3634.8,3634.5,2.75136883]
[1754040989592,0.1376,3634.6,3634.3,2.75151443]
[1754040989764,0.1376,3634.4,3634.3,2.75151443]
[1754040990387,2.0844,3634.4,3634.3,2.75151443]
[1754040990689,2.0844,3634.4,3634.2,2.75162238]
[1754040990888,1.9468,3634.3,3634.1,2.75170128]
[1754040991190,1.9468,3634.2,3634.1,2.75170128]
[1754040992168,2.0844,3634.2,3634.1,2.75170128]
[1754040992361,2.0844,3634.2,3633.8,4.228]
[1754040992689,2.4189,3634.1,3633.9,2.7518603]
[1754040993009,2.4189,3634.0,3633.6,4.227]
[1754040993291,0.4721,3634.0,3633.9,2.75186438]
[1754040993687,0.6097,3634.0,3633.9,2.75186438]
[1754040993897,2.5565,3634.0,3633.9,2.75186438]
[1754040995099,2.5565,3634.0,3633.8,2.75191169]
[1754040995403,0.1376,3633.8,3633.5,2.75210527]
[1754040995603,0.1376,3633.8,3633.4,2.75224307]
[1754040995807,2.0844,3633.8,3633.4,2.75224307]
[1754040995967,0.1376,3633.8,3633.3,0.1376]
[1754040996168,0.1376,3633.5,3633.2,4.227]
[1754040996367,2.0844,3633.5,3633.4,2.75217321]
[1754040996572,0.1376,3633.5,3633.4,2.75217321]
[1754040996811,0.1376,3633.5,3633.4,6.16082346]
[1754040997008,7.06,3634.2,3633.4,6.16082346]
[1754040997009,0.1376,3634.1,3634.0,2.75176553]
[1754040997631,2.0844,3634.1,3633.8,2.75188107]
[1754040997813,1.9468,3634.0,3633.8,2.75188107]
[1754040998130,2.0844,3633.9,3633.7,2.75196064]
[1754040998426,1.9468,3633.8,3633.6,2.75206106]
[1754040998627,0.1376,3633.7,3633.6,2.75209158]
[1754040998826,2.0844,3633.7,3633.4,2.75224307]
[1754040999128,2.4189,3633.6,3633.3,3.0]
[1754040999289,1.9468,3633.5,3633.3,3.0]
[1754040999493,0.4721,3633.6,3633.1,2.75241031]
[1754040999694,0.1376,3633.3,3633.2,2.75239458]
[1754040999930,0.1376,3633.4,3633.3,2.75231882]
[1754041001410,2.0844,3633.4,3633.2,2.75238924]
[1754041001622,0.1376,3633.3,3633.2,2.75239458]
[1754041002212,0.1376,3633.3,3633.1,2.7524378]
[1754041002529,0.1376,3633.3,3633.1,2.75240021]
[1754041002739,1.9468,3633.2,3632.9,2.75256451]
[1754041002922,2.0844,3633.1,3632.9,2.75256451]
[1754041003702,0.1376,3633.1,3632.6,0.1376]
[1754041003902,0.1376,3632.8,3632.6,4.227]
[1754041004511,1.9468,3632.7,3632.4,6.98099982]
[1754041004720,0.4721,3633.1,3632.6,2.75284919]
[1754041004924,1.9468,3633.0,3632.6,2.75284919]
[1754041005242,2.4189,3632.9,3632.4,6.98098005]
[1754041005409,1.9468,3632.8,3632.5,2.75292452]
[1754041005739,0.1376,3632.6,3632.3,5.75307656]
[1754041005905,0.1376,3632.6,3632.5,2.75292498]
[1754041006328,0.1376,3632.6,3632.4,2.75298999]
[1754041006633,0.1376,3632.6,3632.5,2.75292498]
[1754041009038,4.228,3633.2,3632.3,6.76487737]
[1754041009039,4.228,3633.0,3632.3,4.01186766]
[1754041009232,0.1376,3632.9,3632.7,2.75272438]
[1754041009612,2.0014,3632.9,3632.6,2.75281942]
[1754041010009,0.1376,3632.9,3632.5,2.75291172]
[1754041010350,2.3115,3632.8,3632.5,2.75291172]
[1754041010645,1.8638,3632.8,3632.4,2.75293333]
[1754041010830,1.8638,3632.8,3632.6,2.75280669]
[1754041011144,1.8638,3632.8,3632.2,4.228]
[1754041011444,1.8638,3632.8,3632.6,2.7528027]
[1754041011822,0.1376,3632.7,3632.6,2.7528027]
[1754041013014,0.1376,3632.7,3632.5,2.75289047]
[1754041013961,0.1376,3632.7,3632.6,2.75284919]
[1754041014760,0.1376,3632.7,3632.5,2.75289119]
[1754041014963,0.1376,3632.7,3632.6,2.75284919]
[1754041015626,0.5853,3632.7,3632.6,2.75284919]
[1754041016028,0.1376,3632.7,3632.6,2.75284919]
[1754041017623,0.1376,3632.7,3632.2,4.228]
[1754041017945,0.1376,3632.7,3632.6,2.75284919]
[1754041018650,0.1376,3632.9,3632.8,2.75265608]
[1754041018817,0.1376,3632.9,3632.6,2.75283409]
[1754041019129,2.3115,3632.8,3632.6,2.75283409]
[1754041019752,0.1376,3632.9,3632.7,2.75277341]
[1754041019954,0.1376,3632.9,3632.8,5.02129764]
[1754041020473,17.62357832,3633.8,3632.8,5.02129764]
[1754041020474,4.228,3633.4,3632.8,2.2686]
[1754041020774,0.1376,3633.2,3633.1,2.7524071]
[1754041021071,0.1376,3633.2,3632.9,3.20152187]
[1754041021072,1.8638,3634.1,3633.6,2.75207571]
[1754041021255,0.1376,3633.7,3633.6,2.75207571]
[1754041022186,4.228,3634.1,3633.9,2.75181598]
[1754041022478,4.228,3634.2,3633.6,2.2686]
[1754041022644,1.8638,3634.1,3633.8,2.7519357]
[1754041023051,0.1376,3633.9,3633.8,2.7519357]
[1754041025879,0.1376,3634.2,3633.9,2.75179957]
[1754041026043,4.227,3634.8,3634.7,2.7512587]
[1754041026372,0.1376,3635.0,3634.9,2.75110732]
[1754041026666,11.34612511,3635.5,3635.4,2.75072894]
[1754041026894,0.1376,3635.3,3635.2,2.75088028]
[1754041027269,4.227,3635.6,3635.5,2.75058037]
[1754041027719,4.3646,3635.6,3635.5,2.75058037]
[1754041027879,0.1376,3635.6,3635.5,4.57028037]
[1754041028211,4.3646,3635.8,3635.7,2.75046412]
[1754041028414,1.8638,3636.9,3635.7,2.75046412]
[1754041028566,1.8638,3636.9,3635.8,6.4956]
[1754041028567,0.1376,3636.3,3635.8,6.4956]
[1754041028765,4.227,3636.8,3636.7,2.74974564]
[1754041029314,4.3646,3636.8,3636.7,2.74974564]
[1754041029760,0.1376,3636.8,3636.7,2.74974564]
[1754041030907,0.1376,3636.8,3636.6,2.74980394]
[1754041031212,4.6747,3637.2,3636.6,2.74980394]
[1754041031402,1.8638,3637.1,3636.7,2.74973635]
[1754041031563,0.1376,3636.6,3636.5,2.74989687]
[1754041032497,1.8638,3637.5,3636.5,0.7319645]